fUSD/lending_fUSD_20250520
["ID","MTS","AMOUNT","RATE_DAILY","PERIOD"]
[361697218,1747699202657,500.0,0.00027397,120]
[361697219,1747699211399,500.0,0.00027397,120]
[361697220,1747699318533,203.8820915,0.000125,7]
[361697221,1747699325160,203.8820915,0.000125,7]
[361697222,1747699327836,929.64,9.158e-05,2]
[361697223,1747699331671,203.8820915,0.000125,7]
[361697224,1747699338206,212.18456376,0.000125,7]
[361697225,1747699419461,446.97,0.00011078,2]
[361697227,1747699519920,163.6,0.00011037,2]
[361697228,1747699528303,150.0,0.00011037,7]
[361697229,1747699627141,-929.64,0.00011422,2]
[361697230,1747699627164,-200.0,0.00011541,2]
[361697231,1747699627186,-200.0,0.00011658,2]
[361697232,1747699627207,-250.0,0.0001166,2]
[361697233,1747699627228,-864.76119748,0.00011756,2]
[361697234,1747699627249,-339.3632383,0.0001176,2]
[361697235,1747699627271,-198.32477443,0.00011892,2]
[361697236,1747699627296,-1211.1261,0.00011892,2]
[361697237,1747699627317,-198.32477441,0.00011896,2]
[361697238,1747699627338,-198.32477441,0.000119,2]
[361697239,1747699627359,-200.0,0.00011904,2]
[361697240,1747699627379,-300.0,0.0001197,2]
[361697241,1747699627401,-1200.0,0.00011971,2]
[361697242,1747699627421,-500.0,0.00011973,2]
[361697243,1747699627444,-207.4,0.00011984,2]
[361697244,1747699627465,-300.0,0.00011989,2]
[361697245,1747699627487,-3777.766,0.0001199,2]
[361697246,1747699627508,-195.758,0.0001199,2]
[361697247,1747699627528,-150.0,0.0001199,2]
[361697248,1747699627549,-2024.1216266,0.00011991,2]
[361697249,1747699627570,-95787.0654162,0.00011991,2]
[361697250,1747699627591,-2340.8695883,0.00011991,2]
[361697251,1747699627611,-3218.427207,0.00011991,2]
[361697252,1747699627632,-3308.9472564,0.00011991,2]
[361697253,1747699627655,-103229.1699086,0.00011991,2]
[361697254,1747699627675,-10176.7424696,0.00011991,2]
[361697255,1747699627696,-2116.6889896,0.00011992,2]
[361697256,1747699627717,-2209.2563526,0.00011992,2]
[361697257,1747699627738,-32801.5747709,0.00011992,2]
[361697258,1747699634121,-207.4,0.00011893,2]
[361697259,1747699634143,-500.0,0.00011973,2]
[361697260,1747699634166,-26244.56492039,0.00011991,2]
[361697261,1747699638118,-2117.8530617,0.000119,2]
[361697262,1747699638140,-43109.46186341,0.00011991,2]
[361697263,1747699649089,-6074.4121053,0.00011991,2]
[361697264,1747699649111,-151.0,0.00011993,2]
[361697265,1747699649131,-155.0,0.00011999,2]
[361697266,1747699649151,-1057.6240377,0.00011999,3]
[361697267,1747699649174,-458.22626773,0.00012,2]
[361697268,1747699649198,-59343.98982786,0.00012,2]
[361697273,1747699832297,-322.3950764,0.0001176,2]
[361697274,1747699832307,-250.0,0.00011876,2]
[361697275,1747699832316,-200.0,0.00011876,2]
[361697276,1747699832325,-1411.90204112,0.000119,2]
[361697277,1747699832334,-200.0,0.00011956,2]
[361697278,1747699832345,-300.0,0.00011972,2]
[361697279,1747699832355,-629.30731397,0.00011973,2]
[361697280,1747699832364,-500.0,0.00011973,2]
[361697281,1747699832373,-500.0,0.00011973,2]
[361697282,1747699832382,-469.12891239,0.00011973,2]
[361697283,1747699832393,-1200.0,0.0001199,2]
[361697284,1747699832401,-1961.4712152,0.00011991,2]
[361697285,1747699832411,-3771.6967385,0.00011991,2]
[361697286,1747699832421,-150.0,0.00011991,2]
[361697287,1747699832431,-5064.0318573,0.00011992,2]
[361697288,1747699832440,-9098.3740037,0.00011992,2]
[361697293,1747699838261,-53431.41570429,0.00011992,2]
[361697296,1747699838518,-3513.07463121,0.00011992,2]
[361697297,1747699838528,-229.11313386,0.00012,2]
[361697298,1747699838537,-528815.52328914,0.00012,2]
[361697300,1747699838618,-7708.43142783,0.00011992,2]
[361697301,1747699838627,-7148.68740972,0.00012,2]
[361697305,1747699840452,-6151.7639258,0.00011992,2]
[361697306,1747699840462,-759466.10556605,0.00012,2]
[361697307,1747699840472,-156427.49784711,0.00012,2]
[361697308,1747699840482,-4109617.69463648,0.00012,2]
[361697334,1747699843372,-816479.92035721,0.00012,2]
[361697335,1747699843435,-44068.83883578,0.00012,2]
[361697336,1747699843447,-987.8212861,0.00012,2]
[361697337,1747699843458,-506.315,0.00012,2]
[361697357,1747699846059,-272.16536472,0.00011991,2]
[361697358,1747699846070,-4939.73763528,0.00012,2]
[361697359,1747699846102,-59530.57810419,0.00012,2]
[361697360,1747699846113,-4715.24374,0.00012,2]
[361697361,1747699846248,-676.86659964,0.00012,2]
[361697386,1747699846721,-140861.24401665,0.00012,2]
[361699769,1747699931485,202.0,0.00011045,2]
[361699770,1747700020821,150.0,0.00011065,2]
[361699771,1747700028766,320.7,0.00027397,120]
[361699772,1747700157715,22199.02,0.00011016,2]
[361699773,1747700215678,200.0,0.00011009,2]
[361699774,1747700253685,268.52,0.00011019,2]
[361699777,1747700455629,836.67,9.031e-05,2]
[361699780,1747700519199,514.18,0.00010931,2]
[361699781,1747700541605,158.65,0.00010926,2]
[361699782,1747700556226,2609.29,0.00010921,2]
[361699783,1747700556294,500.0,0.00010921,2]
[361699784,1747700570088,250.0,0.00010921,2]
[361699785,1747700596723,606.06,0.00010921,2]
[361699787,1747700655322,150.0,0.00010904,7]
[361699789,1747700768080,937.27754991,8e-05,2]
[361699790,1747700791093,634.24,0.00011017,2]
[361699791,1747700858291,800.0,0.000112,4]
[361699792,1747700867798,283.78,0.00011051,2]
[361699793,1747700877992,1000.0,0.0001088,2]
[361699794,1747700913897,1167.67,0.0001089,2]
[361699795,1747700918926,150.0,0.000135,5]
[361699796,1747700925156,2001.70783871,0.00012,5]
[361699800,1747700966204,6814.13,0.00010879,2]
[361699809,1747701032258,-836.67,0.00011295,2]
[361699810,1747701032268,-200.0,0.00011297,2]
[361699811,1747701032278,-1700.0,0.000113,4]
[361699812,1747701032287,-250.0,0.0001131,2]
[361699813,1747701032297,-200.0,0.00011317,2]
[361699814,1747701032307,-167.48,0.00011356,2]
[361699815,1747701032316,-2500.0,0.000114,4]
[361699816,1747701032326,-1200.0,0.00011499,2]
[361699817,1747701032337,-300.0,0.00011499,2]
[361699818,1747701032346,-3400.0,0.000115,4]
[361699819,1747701032356,-202.0,0.00011542,2]
[361699820,1747701032365,-4300.0,0.000116,4]
[361699821,1747701032374,-864.76119748,0.00011622,2]
[361699822,1747701032384,-207.4,0.00011691,2]
[361699823,1747701032394,-800.0,0.000117,4]
[361699824,1747701032403,-250.0,0.00011706,2]
[361699825,1747701032411,-306.2753226,0.0001176,2]
[361699826,1747701032420,-800.0,0.000118,4]
[361699827,1747701032429,-2870.1466,0.000119,2]
[361699828,1747701032438,-238.4295,0.000119,2]
[361699829,1747701032447,-5000.0,0.000119,2]
[361699830,1747701032456,-1000.0,0.000119,2]
[361699831,1747701032464,-687.0829,0.000119,2]
[361699832,1747701032473,-500.0,0.000119,2]
[361699833,1747701032483,-174.54853767,0.000119,2]
[361699834,1747701032491,-3245.30035623,0.000119,2]
[361699835,1747701032500,-800.0,0.000119,4]
[361699836,1747701032510,-56.15367682,0.000119,2]
[361699852,1747701033410,-285.661587,0.000119,2]
[361699853,1747701033421,-417.53020642,0.000119,2]
[361699854,1747701033481,-474.65452976,0.000119,2]
[361699855,1747701033490,-222.1351471,0.000119,2]
[361699856,1747701033500,-417.51412314,0.000119,2]
[361699857,1747701033512,-2406.2899591,0.000119,2]
[361699858,1747701033521,-165.68994279,0.000119,2]
[361699859,1747701033530,-273.40546655,0.00011973,2]
[361699860,1747701033539,-500.0,0.00011973,2]
[361699861,1747701033549,-3022.213,0.00011973,2]
[361699862,1747701033559,-156.607,0.00011973,2]
[361699863,1747701033568,-4256.15700511,0.00011982,2]
[361699864,1747701033578,-350.0,0.00011988,2]
[361699865,1747701033588,-1514.48613839,0.00011992,2]
[361699866,1747701033616,-3811.54968451,0.00011992,2]
[361699867,1747701033626,-11852.14670549,0.00011992,2]
[361699868,1747701033671,-8772.02652804,0.00011992,2]
[361699869,1747701033728,-5971.5676291,0.00011992,2]
[361699870,1747701033740,-2961.42,0.00011992,2]
[361699871,1747701033751,-26537.8774639,0.00011992,2]
[361699872,1747701033762,-4008.60135854,0.00011992,2]
[361699873,1747701033833,-1911.64632887,0.00011992,2]
[361699874,1747701033846,-809.15148806,0.00011992,2]
[361699877,1747701038197,-264.825,0.00011752,2]
[361699878,1747701038304,-832.68157444,0.00011752,2]
[361699879,1747701038314,-500.0,0.000119,2]
[361699880,1747701038323,-13338.4850812,0.00011992,2]
[361699881,1747701038333,-4333.1742993,0.00011992,2]
[361699882,1747701038342,-155.0,0.00011993,2]
[361699884,1747701038352,-423.0315306,0.00011993,2]
[361699886,1747701038361,-719.52358209,0.00011993,2]
[361699888,1747701038371,-668.65185757,0.00011993,2]
[361699890,1747701038380,-151.0,0.00011993,2]
[361699892,1747701038390,-85028.45207481,0.00012,2]
[361699894,1747701038401,-7658.20307896,0.00012,2]
[361699896,1747701038412,-21240.0,0.00012,2]
[361699898,1747701038423,-19577.92873484,0.00012,2]
[361699996,1747701040267,-60198.43615903,0.00012,2]
[361700010,1747701040419,-619324.92130352,0.00012,2]
[361700012,1747701040429,-229.11313386,0.00012,2]
[361700014,1747701040438,-4405957.26361226,0.00012,2]
[361700016,1747701040450,-33370.09039478,0.00012,2]
[361700019,1747701040461,-45783.44867603,0.00012,2]
[361700021,1747701040475,-22012.19748137,0.00012,2]
[361700023,1747701040485,-20202.32760013,0.00012,2]
[361700030,1747701040543,-1119.93653739,0.00012,2]
[361700148,1747701043889,-1248.36196045,0.00012,2]
[361700149,1747701043900,-1041685.76591961,0.00012,2]
[361700150,1747701043993,-762.84,0.00012,2]
[361700151,1747701044004,-11215.64087378,0.00012,2]
[361700152,1747701044015,-2434.1,0.00012,2]
[361700154,1747701046222,-669.14010691,0.00011752,2]
[361700155,1747701046391,-431.84928464,0.00011752,2]
[361700156,1747701046400,-174.52427578,0.000119,2]
[361700157,1747701046410,-4431.47827262,0.00012,2]
[361700162,1747701046597,-6432.0711299,0.00012,2]
[361700306,1747701245069,21649.88392137,0.00010572,2]
[361700307,1747701245093,2250.11607863,0.00010572,2]
[361700308,1747701288723,1230.96,0.00010541,2]
[361700312,1747701404120,8185.33059444,0.00011,2]
[361700313,1747701434751,150.052007,0.000273,120]
[361700314,1747701435917,150.052007,0.000273,120]
[361700315,1747701439170,150.052007,0.000273,120]
[361700316,1747701445000,150.052007,0.000273,120]
[361700317,1747701455614,150.052007,0.000273,120]
[361700318,1747701487441,189.11,0.00010562,2]
[361700319,1747701727623,250.0,0.00010605,2]
[361700320,1747701788714,166.26,0.00010932,2]
[361700322,1747701867169,753.0,8.705e-05,2]
[361700323,1747701867380,753.0,0.00010969,2]
[361700325,1747701906279,150.0,0.00010629,7]
[361700328,1747702003376,1051.91,0.00010672,2]
[361700330,1747702064473,-195.81360239,0.00011233,2]
[361700331,1747702066550,-279.39143745,0.00011233,2]
[361700332,1747702070617,-190.42801071,0.00011233,2]
[361700333,1747702073211,-40.72694945,0.00011233,2]
[361700334,1747702073233,-127.00447893,0.00011279,2]
[361700335,1747702079660,-34.33688767,0.00011279,2]
[361700336,1747702079684,-134.44591499,0.0001128,2]
[361700337,1747702082002,-65.55408501,0.0001128,2]
[361700338,1747702082024,-196.10817455,0.00011282,2]
[361700339,1747702086103,-53.89182545,0.00011282,2]
[361700340,1747702086126,-162.06697652,0.00011283,2]
[361700341,1747702087766,-37.93302348,0.00011283,2]
[361700342,1747702087791,-137.94789327,0.00011285,2]
[361700343,1747702093981,-163.19184742,0.00011224,2]
[361700344,1747702096133,-220.88662924,0.00011224,2]
[361700345,1747702102197,-310.60381334,0.00011224,2]
[361700346,1747702102220,-2.2902564,0.00011285,2]
[361700347,1747702103778,-9.76185033,0.00011285,2]
[361700348,1747702104234,-150.44814967,0.00011286,2]
[361700349,1747702111633,-99.55185033,0.00011286,2]
[361700350,1747702111657,-100.45400147,0.00011295,2]
[361700351,1747702118425,-55.77599853,0.00011295,2]
[361700352,1747702118449,-127.52214678,0.00011298,2]
[361700353,1747702128058,1000.0,0.00010626,2]
[361700354,1747702138298,193.0,0.000112,2]
[361700355,1747702139480,193.0,0.000112,2]
[361700356,1747702171608,-152.12278338,0.00011241,2]
[361700357,1747702173630,-183.47717095,0.00011241,2]
[361700358,1747702176273,-198.18074467,0.00011241,2]
[361700375,1747702232337,-28.70785322,0.00011298,2]
[361700377,1747702232347,-200.0,0.00011299,2]
[361700380,1747702232362,-250.0,0.00011299,2]
[361700382,1747702232371,-156.23,0.00011301,2]
[361700384,1747702232381,-156.23,0.00011304,2]
[361700386,1747702232391,-200.0,0.00011304,2]
[361700388,1747702232401,-250.0,0.00011304,2]
[361700390,1747702232411,-156.23,0.00011307,2]
[361700391,1747702232420,-156.23,0.0001131,2]
[361700392,1747702232430,-156.23,0.00011313,2]
[361700393,1747702232440,-156.23,0.00011316,2]
[361700394,1747702232450,-1829.81,0.00011318,2]
[361700395,1747702232459,-156.23,0.00011319,2]
[361700396,1747702232470,-156.23,0.00011322,2]
[361700397,1747702232479,-156.23,0.00011324,2]
[361700398,1747702232489,-156.23,0.00011327,2]
[361700399,1747702232499,-156.23,0.0001133,2]
[361700400,1747702232509,-156.23,0.00011333,2]
[361700401,1747702232518,-156.23,0.00011336,2]
[361700402,1747702232529,-156.23,0.00011339,2]
[361700403,1747702232539,-156.23,0.00011342,2]
[361700404,1747702232549,-150.0,0.00011344,2]
[361700405,1747702232558,-156.23,0.00011345,2]
[361700406,1747702232568,-156.23,0.00011348,2]
[361700407,1747702232578,-156.23,0.00011351,2]
[361700408,1747702232587,-300.0,0.00011398,2]
[361700409,1747702232597,-1200.0,0.00011398,2]
[361700410,1747702232607,-300.0,0.00011398,2]
[361700411,1747702232616,-151.0,0.00011399,2]
[361700412,1747702232625,-668.65185757,0.00011399,2]
[361700413,1747702232635,-1199.20597015,0.00011399,2]
[361700414,1747702232644,-668.65185757,0.00011399,2]
[361700415,1747702232654,-207.4,0.00011399,2]
[361700417,1747702232663,-332.82,0.00011507,2]
[361700419,1747702232673,-166.26,0.00011534,2]
[361700421,1747702232683,-500.0,0.00011562,2]
[361700424,1747702232692,-864.76119748,0.00011587,2]
[361700427,1747702232702,-500.0,0.00011671,2]
[361700430,1747702232715,-1037.7861363,0.0001176,2]
[361700432,1747702232724,-1692.52984802,0.0001176,2]
[361700434,1747702232734,-309.2509534,0.0001176,2]
[361700436,1747702232743,-500.0,0.00011873,2]
[361700438,1747702232753,-500.0,0.00011873,2]
[361700439,1747702232762,-500.0,0.00011873,2]
[361700441,1747702232771,-344.13628255,0.00011873,2]
[361700443,1747702232781,-500.0,0.00011873,2]
[361700445,1747702232790,-348.14329467,0.00011873,2]
[361700447,1747702232800,-500.0,0.00011873,2]
[361700449,1747702232810,-449.92795881,0.00011873,2]
[361700452,1747702232819,-500.0,0.00011873,2]
[361700455,1747702232829,-515.62792819,0.00011873,2]
[361700457,1747702232838,-461.48676589,0.00011873,2]
[361700459,1747702232848,-6127.74479864,0.0001188,2]
[361700461,1747702232858,-1772.10782593,0.00011888,2]
[361700463,1747702232867,-1772.10782589,0.00011889,2]
[361700465,1747702232877,-1694.38465254,0.00011891,2]
[361700470,1747702232914,-77.72317335,0.00011891,2]
[361700472,1747702232923,-1772.10782589,0.00011892,2]
[361700474,1747702232933,-2395.28437996,0.00011892,2]
[361700476,1747702232949,-743.61022004,0.00011892,2]
[361700478,1747702232958,-1772.10782589,0.00011893,2]
[361700480,1747702232967,-671.54155744,0.00011894,2]
[361700482,1747702232977,-671.54155744,0.00011894,2]
[361700484,1747702232986,-500.0,0.00011894,2]
[361700486,1747702232996,-671.54155744,0.00011894,2]
[361700488,1747702233006,-671.54155744,0.00011894,2]
[361700490,1747702233016,-500.0,0.00011894,2]
[361700492,1747702233026,-671.54155744,0.00011894,2]
[361700494,1747702233037,-671.54155744,0.00011894,2]
[361700496,1747702233047,-156.19905721,0.00011894,2]
[361700498,1747702233057,-671.54155744,0.00011894,2]
[361700500,1747702233067,-671.54155744,0.00011894,2]
[361700502,1747702233076,-500.0,0.00011894,2]
[361700504,1747702233085,-671.54155744,0.00011894,2]
[361700506,1747702233095,-500.0,0.00011894,2]
[361700508,1747702233105,-671.54155744,0.00011894,2]
[361700510,1747702233113,-671.54155744,0.00011894,2]
[361700512,1747702233122,-671.54155744,0.00011894,2]
[361700514,1747702233131,-671.54155744,0.00011894,2]
[361700516,1747702233141,-671.54155744,0.00011894,2]
[361700518,1747702233150,-671.54155744,0.00011894,2]
[361700520,1747702233160,-671.54155744,0.00011894,2]
[361700522,1747702233169,-671.54155744,0.00011894,2]
[361700524,1747702233180,-671.54155744,0.00011894,2]
[361700526,1747702233191,-671.54155744,0.00011894,2]
[361700528,1747702233202,-671.54155744,0.00011894,2]
[361700530,1747702233211,-671.54155744,0.00011894,2]
[361700532,1747702233221,-671.54155744,0.00011894,2]
[361700534,1747702233232,-671.54155744,0.00011894,2]
[361700536,1747702233242,-671.54155744,0.00011894,2]
[361700538,1747702233251,-671.54155744,0.00011894,2]
[361700540,1747702233260,-671.54155744,0.00011894,2]
[361700542,1747702233271,-671.54155744,0.00011894,2]
[361700544,1747702233282,-671.54155744,0.00011894,2]
[361700546,1747702233292,-671.54155744,0.00011894,2]
[361700548,1747702233302,-671.54155744,0.00011894,2]
[361700550,1747702233311,-671.54155744,0.00011894,2]
[361700552,1747702233322,-671.54155744,0.00011894,2]
[361700554,1747702233331,-671.54155744,0.00011894,2]
[361700557,1747702233341,-671.54155744,0.00011894,2]
[361700559,1747702233351,-671.54155744,0.00011894,2]
[361700561,1747702233360,-671.54155744,0.00011894,2]
[361700563,1747702233370,-671.54155744,0.00011894,2]
[361700566,1747702233380,-671.54155744,0.00011894,2]
[361700567,1747702233389,-669.77148425,0.00011894,2]
[361700570,1747702233403,-1.77007319,0.00011894,2]
[361700572,1747702233412,-671.54155744,0.00011894,2]
[361700574,1747702233422,-671.54155744,0.00011894,2]
[361700576,1747702233432,-671.54155744,0.00011894,2]
[361700578,1747702233441,-671.54155744,0.00011894,2]
[361700580,1747702233451,-671.54155744,0.00011894,2]
[361700582,1747702233461,-671.54155744,0.00011894,2]
[361700584,1747702233471,-671.54155744,0.00011894,2]
[361700586,1747702233481,-671.54155744,0.00011894,2]
[361700588,1747702233491,-671.54155744,0.00011894,2]
[361700590,1747702233501,-671.54155744,0.00011894,2]
[361700592,1747702233509,-671.54155744,0.00011894,2]
[361700594,1747702233521,-671.54155744,0.00011894,2]
[361700596,1747702233531,-671.54155744,0.00011894,2]
[361700598,1747702233542,-671.54155744,0.00011894,2]
[361700600,1747702233551,-671.54155744,0.00011894,2]
[361700602,1747702233561,-671.54155744,0.00011894,2]
[361700604,1747702233570,-671.54155744,0.00011894,2]
[361700606,1747702233580,-671.54155744,0.00011894,2]
[361700608,1747702233589,-671.54155744,0.00011894,2]
[361700610,1747702233599,-671.54155744,0.00011894,2]
[361700612,1747702233608,-671.54155744,0.00011894,2]
[361700614,1747702233617,-671.54155744,0.00011894,2]
[361700616,1747702233627,-671.54155744,0.00011894,2]
[361700618,1747702233637,-649.15683886,0.00011894,2]
[361700620,1747702233646,-649.15683886,0.00011894,2]
[361700621,1747702233655,-649.15683886,0.00011894,2]
[361700623,1747702233664,-649.15683886,0.00011894,2]
[361700625,1747702233674,-649.15683886,0.00011894,2]
[361700628,1747702233687,-649.15683886,0.00011894,2]
[361700630,1747702233697,-649.15683886,0.00011894,2]
[361700632,1747702233706,-649.15683886,0.00011894,2]
[361700634,1747702233716,-649.15683886,0.00011894,2]
[361700636,1747702233725,-526.9100015,0.00011894,2]
[361700694,1747702234294,158.65,0.00010644,2]
[361700797,1747702238295,-293.7884057,0.0001176,2]
[361700798,1747702238305,-122.24683736,0.00011894,2]
[361700799,1747702238315,-649.15683886,0.00011894,2]
[361700800,1747702238324,-176.64537609,0.00011894,2]
[361700801,1747702238335,-320.14840894,0.00011894,2]
[361700802,1747702238347,-152.36305383,0.00011894,2]
[361700803,1747702238356,-259.56876618,0.00011894,2]
[361700814,1747702238686,-389.58807268,0.00011894,2]
[361700816,1747702238695,-97.57337521,0.00011894,2]
[361700818,1747702238707,-551.58346365,0.00011894,2]
[361700820,1747702238716,-649.15683886,0.00011894,2]
[361700822,1747702238725,-649.15683886,0.00011894,2]
[361700824,1747702238735,-649.15683886,0.00011894,2]
[361700826,1747702238745,-649.15683886,0.00011894,2]
[361700828,1747702238754,-649.15683886,0.00011894,2]
[361700830,1747702238763,-649.15683886,0.00011894,2]
[361700832,1747702238773,-649.15683886,0.00011894,2]
[361700834,1747702238783,-649.15683886,0.00011894,2]
[361700836,1747702238792,-649.15683886,0.00011894,2]
[361700838,1747702238802,-649.15683886,0.00011894,2]
[361700840,1747702238811,-649.15683886,0.00011894,2]
[361700842,1747702238821,-649.15683886,0.00011894,2]
[361700844,1747702238830,-649.15683886,0.00011894,2]
[361700846,1747702238839,-1772.10782589,0.00011895,2]
[361700848,1747702238848,-523.0,0.00011896,2]
[361700850,1747702238857,-899.0,0.00011896,2]
[361700852,1747702238866,-150.0,0.00011896,2]
[361700853,1747702238875,-150.0,0.00011896,2]
[361700855,1747702238883,-500.0,0.00011896,2]
[361700857,1747702238892,-500.0,0.00011896,2]
[361700859,1747702238901,-150.0,0.00011896,2]
[361700861,1747702238910,-150.0,0.00011896,2]
[361700863,1747702238919,-500.0,0.00011896,2]
[361700865,1747702238928,-1772.10782589,0.00011896,2]
[361700867,1747702238937,-36.84047125,0.00011897,2]
[361700869,1747702238949,-479.81385714,0.00011897,2]
[361700872,1747702238959,-639.1085706,0.00011897,2]
[361700874,1747702238970,-616.3449269,0.00011897,2]
[361700876,1747702238979,-479.02035826,0.00011899,2]
[361700878,1747702238991,-1293.08746763,0.00011899,2]
[361700880,1747702239000,-1000.0,0.000119,2]
[361700882,1747702239009,-2500.0,0.000119,2]
[361700884,1747702239018,-5709.72680206,0.000119,2]
[361700886,1747702239029,-742.40092644,0.000119,2]
[361700949,1747702240807,-267.0046715,0.000119,2]
[361700951,1747702240816,-199.16356592,0.000119,2]
[361700974,1747702241044,-7.64348399,0.000119,2]
[361700976,1747702241056,-793.19295009,0.000119,2]
[361700978,1747702241066,-161.11014602,0.000119,2]
[361700980,1747702241076,-1000.0,0.000119,2]
[361700982,1747702241086,-644.63432716,0.000119,2]
[361700984,1747702241098,-2463.51151046,0.000119,2]
[361700986,1747702241107,-216.87364653,0.000119,2]
[361700988,1747702241117,-1772.10782589,0.000119,2]
[361700990,1747702241126,-2417.77,0.00011919,2]
[361700992,1747702241135,-156.607,0.00011919,2]
[361700994,1747702241144,-523.0,0.00011923,2]
[361700996,1747702241154,-899.0,0.00011923,2]
[361700998,1747702241163,-150.0,0.00011923,2]
[361701000,1747702241174,-200.44,0.00011923,2]
[361701002,1747702241184,-500.0,0.00011923,2]
[361701004,1747702241194,-518.02000625,0.00011923,2]
[361701006,1747702241203,-500.0,0.00011923,2]
[361701008,1747702241212,-693.3919763,0.00011947,2]
[361701010,1747702241222,-523.0,0.00011951,2]
[361701012,1747702241231,-899.0,0.00011951,2]
[361701014,1747702241240,-150.0,0.00011951,2]
[361701016,1747702241250,-537.41442692,0.00011951,2]
[361701018,1747702241259,-500.0,0.00011951,2]
[361701020,1747702241268,-1000.0,0.00011954,2]
[361701022,1747702241278,-500.0,0.00011973,2]
[361701024,1747702241288,-507.04838419,0.00011973,2]
[361701026,1747702241297,-523.0,0.00011978,2]
[361701028,1747702241307,-899.0,0.00011978,2]
[361701030,1747702241317,-259.75780593,0.00011978,2]
[361701032,1747702241328,-500.0,0.00011978,2]
[361701034,1747702241337,-7601.59856425,0.00011988,2]
[361701036,1747702241349,-52890.35758945,0.00011988,2]
[361701038,1747702241359,-4193.5315442,0.00011988,2]
[361701040,1747702241368,-583.9084538,0.00011989,2]
[361701042,1747702241377,-2933.9017913,0.00011992,2]
[361701044,1747702241386,-150.0,0.00011993,2]
[361701046,1747702241395,-150.0,0.00011993,2]
[361701048,1747702241404,-150.0,0.00011993,2]
[361701050,1747702241414,-500.0,0.00011993,2]
[361701052,1747702241423,-227.7163259,0.00012,2]
[361701053,1747702241432,-488459.2934517,0.00012,2]
[361701055,1747702241441,-1470402.95935692,0.00012,2]
[361701057,1747702241450,-10480.40819635,0.00012,2]
[361701058,1747702241459,-151.0,0.00012,2]
[361701060,1747702241468,-1000.0,0.00012,2]
[361701062,1747702241478,-1000.0,0.00012,2]
[361701063,1747702241487,-1000.0,0.00012,2]
[361701065,1747702241496,-1000.0,0.00012,2]
[361701067,1747702241506,-1000.0,0.00012,2]
[361701068,1747702241515,-1000.0,0.00012,2]
[361701070,1747702241525,-1000.0,0.00012,2]
[361701072,1747702241535,-1000.0,0.00012,2]
[361701073,1747702241544,-1000.0,0.00012,2]
[361701075,1747702241554,-1000.0,0.00012,2]
[361701077,1747702241563,-1000.0,0.00012,2]
[361701078,1747702241571,-1000.0,0.00012,2]
[361701080,1747702241581,-1000.0,0.00012,2]
[361701082,1747702241590,-1000.0,0.00012,2]
[361701084,1747702241599,-1000.0,0.00012,2]
[361701085,1747702241608,-1000.0,0.00012,2]
[361701087,1747702241617,-1000.0,0.00012,2]
[361701089,1747702241630,-1000.0,0.00012,2]
[361701091,1747702241640,-1000.0,0.00012,2]
[361701093,1747702241649,-1000.0,0.00012,2]
[361701094,1747702241658,-1000.0,0.00012,2]
[361701096,1747702241668,-1000.0,0.00012,2]
[361701098,1747702241677,-1000.0,0.00012,2]
[361701100,1747702241686,-1000.0,0.00012,2]
[361701102,1747702241695,-1000.0,0.00012,2]
[361701103,1747702241705,-1000.0,0.00012,2]
[361701105,1747702241714,-1000.0,0.00012,2]
[361701107,1747702241723,-1000.0,0.00012,2]
[361701108,1747702241732,-1000.0,0.00012,2]
[361701110,1747702241741,-1000.0,0.00012,2]
[361701112,1747702241751,-1140.99961029,0.00012,2]
[361701114,1747702241760,-2343772.30042621,0.00012,2]